fUSD/lending_fUSD_20251226
["ID","MTS","AMOUNT","RATE_DAILY","PERIOD"]
[399873960,1766791841925,-501.09853648,0.00016521,2]
[399873961,1766791841935,-299.72437888,0.00016521,2]
[399873962,1766791841945,-501.54516283,0.00016521,2]
[399873963,1766791841954,-500.0,0.00016521,2]
[399873964,1766791841964,-501.27464861,0.00016521,2]
[399873965,1766791841974,-502.51080525,0.00016521,2]
[399873966,1766791841983,-502.36597635,0.00016521,2]
[399873967,1766791841993,-501.62552641,0.00016521,2]
[399873968,1766791842003,-501.64987831,0.00016521,2]
[399873969,1766791842013,-500.0,0.00016521,2]
[399873970,1766791842023,-500.0,0.00016521,2]
[399873971,1766791842033,-582.06225981,0.00016521,2]
[399873972,1766791842043,-501.55278646,0.00016521,2]
[399873973,1766791842054,-501.47129167,0.00016521,2]
[399873974,1766791842063,-501.52379786,0.00016521,2]
[399873975,1766791842073,-1000.0,0.00016521,2]
[399873976,1766791842089,-500.0,0.00016521,2]
[399873977,1766791842099,-1000.0,0.00016521,2]
[399873978,1766791842110,-1000.0,0.00016521,2]
[399873979,1766791842122,-502.60700884,0.00016521,2]
[399873980,1766791842132,-501.13015343,0.00016521,2]
[399873981,1766791842143,-500.63339465,0.00016521,2]
[399873982,1766791842154,-500.64440302,0.00016521,2]
[399873983,1766791842164,-502.41625795,0.00016521,2]
[399873984,1766791842174,-502.47387917,0.00016521,2]
[399873985,1766791842184,-1000.0,0.00016521,2]
[399873986,1766791842194,-501.87578424,0.00016521,2]
[399873987,1766791842205,-500.47493987,0.00016521,2]
[399873988,1766791842214,-1000.0,0.00016521,2]
[399873989,1766791842224,-1000.0,0.00016521,2]
[399873990,1766791842234,-501.68433486,0.00016521,2]
[399873991,1766791842245,-501.50162149,0.00016521,2]
[399873992,1766791842255,-502.12022851,0.00016521,2]
[399873993,1766791842265,-501.45598765,0.00016521,2]
[399873994,1766791842275,-501.11243269,0.00016521,2]
[399873995,1766791842285,-228.68,0.00016521,2]
[399873996,1766791842295,-151.55934747,0.00016575,2]
[399873997,1766791842305,-334.5472959,0.00016615,2]
[399873998,1766791842315,-653.33262019,0.0001666,2]
[399873999,1766791842324,-203.59064575,0.00016747,2]
[399874000,1766791842335,-228.68,0.00016795,2]
[399874001,1766791842345,-481.37,0.00016822,2]
[399874002,1766791842355,-1113.30940197,0.0001683,2]
[399874003,1766791842366,-920.05503367,0.00016849,2]
[399874004,1766791842376,-200.0,0.00016863,2]
[399874005,1766791842386,-200.0,0.00016864,2]
[399874006,1766791842397,-20287.12147801,0.000169,3]
[399874007,1766791842406,-228.55347716,0.000169,2]
[399874008,1766791842416,-228.26447957,0.000169,2]
[399874009,1766791842426,-3059.60357609,0.000169,2]
[399874010,1766791842436,-2238.14376668,0.000169,2]
[399874011,1766791842451,-194.15320872,0.000169,2]
[399874012,1766791842462,-920.05503367,0.00016904,2]
[399874013,1766791842473,-500.0,0.0001697,2]
[399874014,1766791842483,-1000.0,0.0001697,2]
[399874015,1766791842493,-500.0,0.0001697,2]
[399874016,1766791842502,-1000.0,0.0001697,2]
[399874017,1766791842754,-802.46796525,0.0001697,2]
[399874018,1766791842765,-1000.0,0.0001697,2]
[399874019,1766791842774,-150.12296232,0.00016973,2]
[399874020,1766791842784,-163.53521313,0.00016973,2]
[399874021,1766791842794,-150.0,0.00016973,2]
[399874022,1766791842804,-150.0,0.00016973,2]
[399874023,1766791842813,-164.56,0.00016976,2]
[399874024,1766791842823,-164.56,0.00016976,2]
[399874025,1766791842833,-200.18296457,0.00016983,2]
[399874026,1766791842842,-300.0,0.00016985,2]
[399874027,1766791842852,-300.0,0.00016985,2]
[399874028,1766791842862,-300.0,0.00016985,2]
[399874029,1766791842871,-300.0,0.00016985,2]
[399874030,1766791842881,-920.05503367,0.00016986,2]
[399874031,1766791842894,-327594.04,0.00016986,2]
[399874032,1766791842903,-150.0,0.00016986,2]
[399874033,1766791842913,-150.00000001,0.00016986,2]
[399874034,1766791842923,-300.0,0.00016994,2]
[399874035,1766791842938,-300.0,0.00016994,2]
[399874036,1766791842948,-307.66104653,0.00016994,2]
[399874037,1766791842957,-300.0,0.00016994,2]
[399874038,1766791842967,-61990.9987378,0.00016995,2]
[399874039,1766791842977,-1202.7745162,0.00016995,2]
[399874040,1766791842987,-300.0,0.00016999,2]
[399874041,1766791842997,-300.0,0.00016999,2]
[399874042,1766791843006,-300.0,0.00016999,2]
[399874043,1766791843016,-2216.98994142,0.00016999,2]
[399874044,1766791843033,-299718.08315802,0.00017,2]
[399874045,1766791843049,-778225.12167819,0.00017,2]
[399874046,1766791843060,-778.67184898,0.00017,2]
[399874047,1766791843069,-868.47141474,0.00017,2]
[399874048,1766791843079,-160.0,0.00017,2]
[399874049,1766791843089,-518107.8609078,0.00017,2]
[399874050,1766791843098,-216.58535286,0.00017,2]
[399874051,1766791843108,-157802.17611932,0.00017,2]
[399874052,1766791843118,-150.0,0.00017,2]
[399874053,1766791843128,-2293.04691068,0.00017,2]
[399874054,1766791843142,-150.0,0.00017,2]
[399874055,1766791843152,-671.20407632,0.00017,2]
[399874056,1766791843163,-150.0,0.00017,2]
[399874057,1766791843172,-15066.51163267,0.00017,2]
[399874058,1766791843182,-250.0,0.00017,2]
[399874059,1766791843192,-200.0,0.00017,2]
[399874060,1766791843202,-2000.0,0.00017,2]
[399874061,1766791843212,-353.74053047,0.00017,2]
[399874062,1766791843222,-151.0,0.00017,2]
[399874063,1766791843232,-151.0,0.00017,2]
[399874064,1766791843243,-151.0,0.00017,2]
[399874065,1766791843253,-151.0,0.00017,2]
[399874066,1766791843262,-151.0,0.00017,2]
[399874067,1766791843273,-151.0,0.00017,2]
[399874068,1766791843282,-151.0,0.00017,2]
[399874069,1766791843292,-151.0,0.00017,2]
[399874070,1766791843303,-50181.76434894,0.00017,2]
[399874074,1766791843567,-600.930018,0.00014916,2]
[399874075,1766791843579,-353.1863629,0.00014916,2]
[399874076,1766791844420,-298.0,0.00014916,2]
[399874077,1766791844438,-74.8836191,0.00014916,2]
[399874078,1766791844450,-151.0,0.00015688,2]
[399874079,1766791844460,-45.58240298,0.00017,2]
[399874080,1766791844472,-276.29565446,0.00017,2]
[399874081,1766791844484,-745.41795146,0.00017,2]
[399874083,1766791845518,-241829.69868304,0.00017,2]
[399874104,1766793031533,-444.805,0.00012579,2]
[399874106,1766793031545,-300.0,0.00012735,2]
[399874108,1766793031556,-31.35203811,0.00012735,2]
[399874111,1766793031664,-299.99,0.00012735,2]
[399874127,1766793031677,-834.9769566,0.00012735,2]
[399874137,1766793032250,-33.68100529,0.00012735,2]
[399874139,1766793032260,-820.24646532,0.00012736,2]
[399874141,1766793032271,-747.0230434,0.00012736,2]
[399874144,1766793032291,-6690.0,0.00012736,2]
[399874169,1766793037675,-470.0,0.00012735,2]
[399874170,1766793037717,-30.0,0.00012735,2]
[399874171,1766793037727,-462.80178041,0.00012735,2]
[399874172,1766793037736,-269.8450411,0.00012735,2]
[399874173,1766793037759,-7.32032423,0.00012735,2]
[399874174,1766793037769,-269.12046063,0.00012735,2]
[399874175,1766793037778,-500.0,0.00012735,2]
[399874176,1766793037788,-500.0,0.00012735,2]
[399874177,1766793037797,-199.45871012,0.00012735,2]
[399874178,1766793037807,-5.48957965,0.00012736,2]
[399874179,1766793037823,-36924.61311404,0.00012736,2]
[399874180,1766793037835,-480.96,0.00012736,2]
[399874181,1766793037852,-963.02821688,0.00012736,2]
[399874210,1766793039750,-16957.25349034,0.00012736,2]
[399874211,1766793039798,-15877.52973549,0.00012736,2]
[399874212,1766793039810,-2054.98497725,0.00012736,2]
[399874213,1766793039847,-8904.92513306,0.00012736,2]
[399874214,1766793039858,-1434.6,0.00012736,2]
[399874215,1766793039873,-9809.32596302,0.00012736,2]
[399874216,1766793039884,-25608.17919756,0.00012736,2]
[399874217,1766793039899,-2430.87677642,0.00012736,2]
[399874218,1766793040079,-870290.96430757,0.00012736,2]
[399874219,1766793040088,-157.86513217,0.00012818,2]
[399874220,1766793040097,-354.49633654,0.00012818,2]
[399874221,1766793040106,-9922.11436807,0.00012818,2]
[399874222,1766793040116,-1200.0,0.00012834,2]
[399874223,1766793040125,-150.0,0.00012835,2]
[399874224,1766793040135,-2769.78380032,0.00012918,2]
[399874225,1766793040144,-9922.11436804,0.00013272,2]
[399874226,1766793040154,-2769.78380031,0.0001336,2]
[399874227,1766793040163,-5155.72160543,0.00013418,2]
[399874228,1766793040172,-157.86513217,0.00013498,2]
[399874229,1766793040183,-199.39689062,0.00013639,2]
[399874230,1766793040192,-9922.11436804,0.00013725,2]
[399874231,1766793040201,-2769.78380031,0.00013803,2]
[399874232,1766793040211,-600.0,0.00013837,2]
[399874233,1766793040220,-600.0,0.00013837,2]
[399874234,1766793040229,-600.0,0.00013837,2]
[399874235,1766793040239,-600.0,0.00013837,2]
[399874236,1766793040248,-286.47442806,0.00013837,2]
[399874237,1766793040257,-195.0,0.00013837,2]
[399874238,1766793040266,-195.0,0.00013837,2]
[399874239,1766793040275,-2500.0,0.00013837,2]
[399874240,1766793040285,-173.71,0.00013843,2]
[399874241,1766793040294,-255.0,0.00013939,2]
[399874242,1766793040303,-420.0,0.0001397,2]
[399874244,1766793040313,-1680.0,0.00014008,2]
[399874246,1766793040322,-1000.0,0.0001417,2]
[399874247,1766793040332,-1475.4671258,0.0001417,2]
[399874248,1766793040341,-157.86513217,0.00014179,2]
[399874249,1766793040351,-9922.11436804,0.00014179,2]
[399874250,1766793040361,-2769.78380031,0.00014245,2]
[399874251,1766793040370,-1000.0,0.00014287,2]
[399874252,1766793040380,-1000.0,0.0001437,2]
[399874253,1766793040390,-500.0,0.00014373,2]
[399874254,1766793040399,-276.52041223,0.00014373,2]
[399874255,1766793040409,-339.47657605,0.00014373,2]
[399874256,1766793040419,-500.0,0.00014373,2]
[399874257,1766793040428,-500.0,0.00014373,2]
[399874258,1766793040438,-500.0,0.00014373,2]
[399874259,1766793040448,-999.0,0.00014598,3]
[399874260,1766793040458,-9922.11436804,0.00014632,2]
[399874261,1766793040468,-1000.0,0.0001467,2]
[399874262,1766793040477,-2769.78380031,0.00014688,2]
[399874263,1766793040487,-354.49633653,0.00014859,2]
[399874264,1766793040496,-157.86513217,0.00014859,2]
[399874265,1766793040505,-1000.0,0.00014921,2]
[399874266,1766793040515,-502.55443721,0.00014921,2]
[399874267,1766793040524,-500.0,0.00014921,2]
[399874268,1766793040533,-1000.0,0.0001497,2]
[399874269,1766793040543,-476.7,0.00015068,2]
[399874270,1766793040552,-9922.11436804,0.00015086,2]
[399874271,1766793040561,-2769.78380031,0.0001513,2]
[399874272,1766793040571,-433.0,0.00015132,2]
[399874273,1766793040580,-3458.0,0.00015143,2]
[399874274,1766793040590,-612.0,0.00015143,2]
[399874275,1766793040599,-1327.0,0.00015143,2]
[399874276,1766793040608,-1610.0,0.00015143,2]
[399874277,1766793040618,-432.0,0.00015143,2]
[399874278,1766793040627,-912.0,0.00015143,2]
[399874279,1766793040637,-150.0,0.00015143,2]
[399874280,1766793040646,-6533.0,0.00015143,2]
[399874281,1766793040655,-150.0,0.00015143,2]
[399874282,1766793040664,-150.0,0.00015143,2]
[399874283,1766793040674,-4808.0,0.00015143,2]
[399874284,1766793040683,-2430.0,0.00015143,2]
[399874285,1766793040693,-150.0,0.00015288,2]
[399874286,1766793040702,-150.0,0.00015288,2]
[399874287,1766793040712,-230.12358953,0.00015288,2]
[399874288,1766793040721,-150.0,0.00015288,2]
[399874289,1766793040731,-150.00000001,0.00015288,2]
[399874290,1766793040740,-150.00000001,0.00015288,2]
[399874291,1766793040750,-150.00000001,0.00015288,2]
[399874292,1766793040759,-587.0,0.00015324,2]
[399874293,1766793040769,-154.62,0.00015374,2]
[399874294,1766793040778,-151.0,0.00015374,2]
[399874295,1766793040788,-2351.0,0.00015409,2]
[399874296,1766793040797,-151.0,0.00015432,2]
[399874297,1766793040806,-1500.0,0.00015468,2]
[399874298,1766793040817,-157.86513217,0.00015539,2]
[399874299,1766793040826,-9922.11436804,0.00015539,2]
[399874300,1766793040835,-2769.78380031,0.00015573,2]
[399874301,1766793040845,-200.0,0.00015716,2]
[399874302,1766793040855,-501.02283993,0.00015829,2]
[399874303,1766793040864,-250.0,0.00015885,2]
[399874304,1766793040874,-500.0,0.00015885,2]
[399874305,1766793040883,-500.0,0.00015885,2]
[399874306,1766793040893,-250.0,0.00015885,2]
[399874307,1766793040902,-500.0,0.00015885,2]
[399874308,1766793040912,-500.0,0.00015885,2]
[399874309,1766793040921,-500.0,0.00015885,2]
[399874310,1766793040931,-500.0,0.00015885,2]
[399874311,1766793040940,-500.0,0.00015885,2]
[399874312,1766793040950,-496.47127164,0.00015885,2]
[399874313,1766793040959,-500.0,0.00015885,2]
[399874314,1766793040969,-500.0,0.00015885,2]
[399874315,1766793040979,-500.0,0.00015885,2]
[399874316,1766793040988,-500.0,0.00015885,2]
[399874317,1766793040997,-500.0,0.00015885,2]
[399874318,1766793041007,-322.6107,0.00015885,2]
[399874319,1766793041016,-500.0,0.00015885,2]
[399874320,1766793041026,-500.0,0.00015885,2]
[399874321,1766793041035,-500.0,0.00015885,2]
[399874322,1766793041044,-500.0,0.00015885,2]
[399874323,1766793041055,-500.0,0.00015885,2]
[399874324,1766793041064,-500.0,0.00015885,2]
[399874325,1766793041074,-500.0,0.00015885,2]
[399874326,1766793041083,-500.0,0.00015885,2]
[399874327,1766793041092,-500.0,0.00015885,2]
[399874328,1766793041102,-500.0,0.00015885,2]
[399874329,1766793041111,-500.0,0.00015885,2]
[399874330,1766793041300,-500.0,0.00015885,2]
[399874331,1766793041324,-500.0,0.00015885,2]
[399874332,1766793041334,-500.0,0.00015885,2]
[399874333,1766793041344,-500.0,0.00015885,2]
[399874334,1766793041353,-500.0,0.00015885,2]
[399874335,1766793041364,-500.0,0.00015885,2]
[399874336,1766793041374,-500.0,0.00015885,2]
[399874337,1766793041383,-500.0,0.00015885,2]
[399874338,1766793041393,-500.0,0.00015885,2]
[399874339,1766793041403,-500.0,0.00015885,2]
[399874340,1766793041412,-500.0,0.00015885,2]
[399874341,1766793041422,-500.0,0.00015885,2]
[399874342,1766793041431,-500.0,0.00015885,2]
[399874343,1766793041441,-500.0,0.00015885,2]
[399874344,1766793041451,-250.0,0.00015885,2]
[399874345,1766793041460,-500.0,0.00015885,2]
[399874346,1766793041470,-454.88526239,0.00015885,2]
[399874347,1766793041481,-250.0,0.00015885,2]
[399874348,1766793041491,-351.8282185,0.00015885,2]
[399874349,1766793041500,-250.0,0.00015885,2]
[399874350,1766793041510,-250.0,0.00015885,2]
[399874351,1766793041520,-250.0,0.00015885,2]
[399874352,1766793041530,-250.0,0.00015885,2]
[399874353,1766793041539,-250.0,0.00015885,2]
[399874354,1766793041549,-200.0,0.00015885,2]
[399874355,1766793041558,-250.0,0.00015885,2]
[399874356,1766793041568,-207.4,0.00015885,2]
[399874357,1766793041577,-250.0,0.00015885,2]
[399874358,1766793041587,-215.0738,0.00015885,2]
[399874359,1766793041597,-250.0,0.00015885,2]
[399874360,1766793041607,-223.0315306,0.00015885,2]
[399874361,1766793041616,-231.28369723,0.00015885,2]
[399874362,1766793041626,-250.0,0.00015885,2]
[399874363,1766793041635,-239.84119403,0.00015885,2]
[399874364,1766793041644,-250.0,0.00015885,2]
[399874365,1766793041654,-250.0,0.00015885,2]
[399874366,1766793041663,-248.71531821,0.00015885,2]
[399874367,1766793041672,-250.0,0.00015885,2]
[399874368,1766793041681,-257.91778498,0.00015885,2]
[399874369,1766793041691,-250.0,0.00015885,2]
[399874370,1766793041700,-267.46074303,0.00015885,2]
[399874371,1766793041710,-250.0,0.00015885,2]
[399874372,1766793041719,-377.36930401,0.00015885,2]
[399874373,1766793041728,-578.20924308,0.00015885,2]
[399874374,1766793041738,-228.68,0.00015885,2]
[399874375,1766793041747,-500.0,0.00015973,2]
[399874376,1766793041757,-500.0,0.00015973,2]
[399874377,1766793041766,-534.79304432,0.00015973,2]
[399874378,1766793041776,-500.0,0.00015973,2]
[399874379,1766793041786,-500.0,0.00015973,2]
[399874380,1766793041795,-500.0,0.00015973,2]
[399874381,1766793041805,-500.0,0.00015973,2]
[399874382,1766793041814,-500.0,0.00015973,2]
[399874383,1766793041824,-500.0,0.00015973,2]
[399874384,1766793041833,-500.0,0.00015973,2]
[399874385,1766793041842,-500.0,0.00015973,2]
[399874386,1766793041852,-500.0,0.00015973,2]
[399874387,1766793041861,-500.0,0.00015973,2]
[399874388,1766793041871,-500.0,0.00015973,2]
[399874389,1766793041880,-500.0,0.00015973,2]
[399874390,1766793041890,-500.0,0.00015973,2]
[399874391,1766793041899,-501.32987729,0.00015973,2]
[399874392,1766793041909,-500.0,0.00015973,2]
[399874393,1766793041918,-500.0,0.00015973,2]
[399874394,1766793041928,-500.0,0.00015973,2]
[399874395,1766793041937,-500.89276948,0.00015973,2]
[399874396,1766793041946,-500.0,0.00015973,2]
[399874397,1766793041956,-500.0,0.00015973,2]
[399874398,1766793041966,-500.76503002,0.00015973,2]
[399874399,1766793041975,-500.0,0.00015973,2]
[399874400,1766793041984,-500.0,0.00015973,2]
[399874401,1766793041994,-500.0,0.00015973,2]
[399874402,1766793042003,-500.0,0.00015973,2]
[399874403,1766793042013,-500.0,0.00015973,2]
[399874404,1766793042022,-500.0,0.00015973,2]
[399874405,1766793042032,-500.0,0.00015973,2]
[399874406,1766793042041,-500.0,0.00015973,2]
[399874407,1766793042050,-500.0,0.00015973,2]
[399874408,1766793042060,-500.91892275,0.00015973,2]
[399874409,1766793042069,-500.0,0.00015973,2]
[399874410,1766793042078,-500.0,0.00015973,2]
[399874411,1766793042088,-500.0,0.00015973,2]
[399874412,1766793042097,-500.0,0.00015973,2]
[399874413,1766793042106,-500.0,0.00015973,2]
[399874414,1766793042116,-500.0,0.00015973,2]
[399874415,1766793042126,-500.0,0.00015973,2]
[399874416,1766793042135,-9922.11436804,0.00015993,2]
[399874417,1766793042144,-2769.78380031,0.00016015,2]
[399874418,1766793042154,-731.69372668,0.00016016,2]
[399874419,1766793042163,-1000.0,0.00016073,2]
[399874420,1766793042173,-173.71,0.0001615,2]
[399874421,1766793042182,-228.68,0.00016159,2]
[399874422,1766793042191,-161.41,0.00016192,2]
[399874423,1766793042200,-178.57,0.00016192,2]
[399874424,1766793042210,-178.57,0.00016192,2]
[399874425,1766793042219,-178.57,0.00016192,2]
[399874426,1766793042229,-157.86513217,0.0001622,2]
[399874427,1766793042240,-1000.0,0.0001637,2]
[399874428,1766793042250,-228.68,0.00016433,2]
[399874429,1766793042260,-438.2,0.00016438,2]
[399874430,1766793042271,-150.0,0.00016438,2]
[399874431,1766793042280,-150.0,0.00016438,2]
[399874432,1766793042290,-500.0,0.00016438,2]
[399874433,1766793042299,-500.0,0.00016438,2]
[399874434,1766793042308,-500.0,0.00016438,2]
[399874435,1766793042318,-500.0,0.00016438,2]
[399874436,1766793042327,-500.0,0.00016438,2]
[399874437,1766793042337,-500.0,0.00016438,2]
[399874438,1766793042347,-500.0,0.00016438,2]
[399874439,1766793042356,-500.0,0.00016438,2]
[399874440,1766793042366,-500.0,0.00016438,2]
[399874441,1766793042376,-500.0,0.00016438,2]
[399874442,1766793042386,-500.0,0.00016438,2]
[399874443,1766793042396,-500.0,0.00016438,2]
[399874444,1766793042406,-500.0,0.00016438,2]
[399874445,1766793042415,-500.0,0.00016438,2]
[399874446,1766793042425,-500.0,0.00016438,2]
[399874447,1766793042435,-500.0,0.00016438,2]
[399874448,1766793042445,-500.0,0.00016438,2]
[399874449,1766793042454,-500.0,0.00016438,2]
[399874450,1766793042463,-500.0,0.00016438,2]
[399874451,1766793042474,-500.0,0.00016438,2]
[399874452,1766793042484,-500.0,0.00016438,2]
[399874454,1766793042493,-569.58203715,0.00016438,2]
[399874456,1766793042503,-500.0,0.00016438,2]
[399874458,1766793042512,-500.0,0.00016438,2]
[399874459,1766793042522,-500.0,0.00016438,2]
[399874460,1766793042531,-500.0,0.00016438,2]
[399874462,1766793042541,-500.0,0.00016438,2]
[399874463,1766793042551,-500.0,0.00016438,2]
[399874464,1766793042560,-500.0,0.00016438,2]
[399874465,1766793042570,-476.7,0.00016438,2]
[399874466,1766793042580,-164.56,0.0001644,2]
[399874467,1766793042589,-164.56,0.0001644,2]
[399874468,1766793042598,-164.56,0.0001644,2]
[399874469,1766793042607,-164.56,0.0001644,2]
[399874470,1766793042616,-164.56,0.0001644,2]
[399874471,1766793042626,-736.0,0.00016441,2]
[399874472,1766793042635,-9922.11436804,0.00016446,2]
[399874473,1766793042644,-2769.78380031,0.00016458,2]
[399874474,1766793042654,-150.0,0.00016465,2]
[399874475,1766793042664,-150.0,0.00016465,2]
[399874476,1766793042674,-203.08372064,0.00016493,2]
[399874477,1766793042683,-200.0,0.00016493,2]
[399874478,1766793042692,-501.54516283,0.00016521,2]
[399874479,1766793042702,-501.27464861,0.00016521,2]
[399874480,1766793042712,-500.0,0.00016521,2]
[399874481,1766793042721,-500.0,0.00016521,2]
[399874482,1766793042731,-501.64987831,0.00016521,2]
[399874483,1766793042740,-500.0,0.00016521,2]
[399874484,1766793042750,-1000.0,0.00016521,2]
[399874485,1766793042760,-501.62552641,0.00016521,2]
[399874486,1766793042770,-502.36597635,0.00016521,2]
[399874487,1766793042779,-502.51080525,0.00016521,2]
[399874488,1766793042789,-500.0,0.00016521,2]
[399874489,1766793042799,-501.55278646,0.00016521,2]
[399874490,1766793042809,-582.06225981,0.00016521,2]
[399874491,1766793042818,-1000.0,0.00016521,2]
[399874492,1766793042828,-500.47493987,0.00016521,2]
[399874493,1766793042837,-1000.0,0.00016521,2]
[399874494,1766793042847,-501.52379786,0.00016521,2]
[399874495,1766793042857,-501.09853648,0.00016521,2]
[399874496,1766793042867,-501.47129167,0.00016521,2]
[399874497,1766793042876,-1000.0,0.00016521,2]
[399874498,1766793042885,-501.13015343,0.00016521,2]
[399874499,1766793042894,-500.63339465,0.00016521,2]
[399874500,1766793042903,-500.56640206,0.00016521,2]
[399874501,1766793042913,-502.60700884,0.00016521,2]
[399874502,1766793042922,-501.87578424,0.00016521,2]
[399874503,1766793042932,-502.41625795,0.00016521,2]
[399874504,1766793042941,-500.64440302,0.00016521,2]
[399874505,1766793042950,-502.47387917,0.00016521,2]
[399874506,1766793042959,-1000.0,0.00016521,2]
[399874507,1766793042968,-299.72437888,0.00016521,2]
[399874508,1766793042978,-1000.0,0.00016521,2]
[399874509,1766793042988,-501.68433486,0.00016521,2]
[399874510,1766793042997,-501.50162149,0.00016521,2]
[399874511,1766793043007,-501.45598765,0.00016521,2]
[399874512,1766793043016,-502.12022851,0.00016521,2]
[399874513,1766793043025,-501.11243269,0.00016521,2]
[399874514,1766793043035,-151.55934747,0.00016539,2]
[399874515,1766793043044,-653.33262019,0.0001666,2]
[399874516,1766793043053,-228.68,0.00016707,2]
[399874517,1766793043063,-164.83,0.00016712,2]
[399874518,1766793043072,-203.59064575,0.00016713,2]
[399874519,1766793043083,-175.0,0.0001681,2]
[399874520,1766793043092,-250.0,0.00016814,2]
[399874521,1766793043102,-1113.30940197,0.0001683,2]
[399874522,1766793043112,-481.45,0.00016849,2]
[399874523,1766793043121,-481.45,0.00016849,2]
[399874524,1766793043135,-481.45,0.00016849,2]
[399874525,1766793043144,-481.45,0.00016849,2]
[399874526,1766793043153,-481.45,0.00016849,2]
[399874527,1766793043162,-200.0,0.00016863,2]
[399874528,1766793043171,-200.0,0.00016864,2]
[399874529,1766793043182,-2769.78380031,0.000169,2]
[399874530,1766793043191,-398.40831122,0.000169,2]
[399874531,1766793043201,-354.49633653,0.000169,2]
[399874532,1766793043212,-228.55347716,0.000169,2]
[399874533,1766793043222,-157.86513217,0.000169,2]
[399874534,1766793043231,-228.26447957,0.000169,2]
[399874535,1766793043240,-9922.11436804,0.000169,2]
[399874536,1766793043250,-2237.14302306,0.000169,2]
[399874537,1766793043260,-194.15320872,0.000169,2]
[399874538,1766793043270,-2238.14376668,0.000169,2]
[399874539,1766793043279,-3408.0,0.000169,2]
[399874540,1766793043288,-150.99,0.00016922,2]
[399874541,1766793043298,-9999.99,0.00016922,2]
[399874542,1766793043308,-9999.99,0.00016922,2]
[399874543,1766793043317,-9999.99,0.00016922,2]
[399874544,1766793043327,-294.76,0.00016922,2]
[399874545,1766793043336,-347.05,0.00016922,2]
[399874546,1766793043346,-5278.37,0.00016922,2]
[399874547,1766793043355,-12287.56,0.00016922,2]
[399874548,1766793043365,-14850.43,0.00016922,2]
[399874549,1766793043375,-287.0,0.00016942,2]
[399874550,1766793043384,-3292.0,0.0001695,2]
[399874551,1766793043394,-500.0,0.0001697,2]
[399874552,1766793043403,-1000.0,0.0001697,2]
[399874553,1766793043412,-500.0,0.0001697,2]
[399874554,1766793043437,-1000.0,0.0001697,2]
[399874555,1766793043450,-802.46796525,0.0001697,2]
[399874556,1766793043461,-1000.0,0.0001697,2]
[399874557,1766793043471,-1000.0,0.0001697,2]
[399874558,1766793043481,-150.12296232,0.00016973,2]
[399874559,1766793043491,-163.53521313,0.00016973,2]
[399874560,1766793043502,-150.0,0.00016973,2]
[399874561,1766793043513,-150.0,0.00016973,2]
[399874562,1766793043523,-228.68,0.00016981,2]
[399874564,1766793043533,-150.0,0.00016986,2]
[399874565,1766793043543,-150.00000001,0.00016986,2]
[399874566,1766793043553,-150.00000045,0.00016986,2]
[399874567,1766793043563,-164.56,0.00016987,2]
[399874568,1766793043574,-164.56,0.0001699,2]
[399874569,1766793043584,-164.56,0.0001699,2]
[399874570,1766793043594,-164.56,0.0001699,2]
[399874571,1766793043604,-300.0,0.00016996,2]
[399874572,1766793043613,-300.0,0.00016996,2]
[399874573,1766793043623,-49644.8408729,0.00016997,2]
[399874574,1766793043633,-13291.0539581,0.00016997,2]